[Event "*** Titled Tuesday Blitz AM"]
[Site "Chess.com"]
[Date "2020.01.07"]
[Round "4"]
[White "Onegust"]
[Black "Eliwood44"]
[Result "1-0"]
[WhiteElo "2554"]
[BlackElo "2335"]
[TimeControl "180+2"]
[EndTime "9:51:31 PST"]
[Termination "Onegust won by resignation"]

1. e4 {[%clk 0:02:59.9]} 1... e5 {[%clk 0:02:56.3]} 2. Nf3 {[%clk 0:03:00.6]}
2... Nc6 {[%clk 0:02:57]} 3. Bb5 {[%clk 0:03:01.6]} 3... a6 {[%clk 0:02:57.7]}
4. Ba4 {[%clk 0:03:02.5]} 4... d6 {[%clk 0:02:58.9]} 5. O-O {[%clk 0:03:00.4]}
5... Bd7 {[%clk 0:02:59.8]} 6. c3 {[%clk 0:03:01.2]} 6... g6 {[%clk 0:03:00.1]}
7. d4 {[%clk 0:02:54.4]} 7... Bg7 {[%clk 0:03:01]} 8. h3 {[%clk 0:02:38.7]} 8...
Nf6 {[%clk 0:03:00.9]} 9. Nbd2 {[%clk 0:02:10.9]} 9... O-O {[%clk 0:02:59.8]}
10. Bc2 {[%clk 0:02:10.3]} 10... Re8 {[%clk 0:03:00.4]} 11. Re1 {[%clk
0:02:09.6]} 11... b5 {[%clk 0:03:01.4]} 12. Nf1 {[%clk 0:02:09.4]} 12... Na5
{[%clk 0:03:02.4]} 13. Ng3 {[%clk 0:02:05.9]} 13... c5 {[%clk 0:03:03.2]} 14. b3
{[%clk 0:01:57.4]} 14... cxd4 {[%clk 0:03:01.9]} 15. cxd4 {[%clk 0:01:59.3]}
15... Nc6 {[%clk 0:03:00.3]} 16. Bb2 {[%clk 0:01:59.3]} 16... Rc8 {[%clk
0:02:50.7]} 17. Rc1 {[%clk 0:01:56.4]} 17... Nb4 {[%clk 0:02:44.1]} 18. Bb1
{[%clk 0:01:56.9]} 18... Rxc1 {[%clk 0:02:43]} 19. Qxc1 {[%clk 0:01:58.4]} 19...
exd4 {[%clk 0:02:31.8]} 20. Bxd4 {[%clk 0:01:55]} 20... Qc8 {[%clk 0:02:26.7]}
21. Qb2 {[%clk 0:01:52.6]} 21... Qd8 {[%clk 0:02:19]} 22. a3 {[%clk 0:01:42.2]}
22... Nc6 {[%clk 0:02:16]} 23. Bc3 {[%clk 0:01:43.6]} 23... a5 {[%clk 0:02:16]}
24. b4 {[%clk 0:01:32.5]} 24... axb4 {[%clk 0:02:16.6]} 25. axb4 {[%clk
0:01:34.4]} 25... Bc8 {[%clk 0:02:06.7]} 26. Rd1 {[%clk 0:01:31.2]} 26... Qe7
{[%clk 0:02:01.7]} 27. Ba2 {[%clk 0:01:31.2]} 27... Be6 {[%clk 0:01:58.6]} 28.
Bd5 {[%clk 0:01:00.8]} 28... Ne5 {[%clk 0:01:45.8]} 29. Nxe5 {[%clk 0:00:28.8]}
29... dxe5 {[%clk 0:01:46.5]} 30. Qb3 {[%clk 0:00:22.7]} 30... Nxd5 {[%clk
0:01:45.6]} 31. exd5 {[%clk 0:00:24.6]} 31... Bd7 {[%clk 0:01:46.3]} 32. d6
{[%clk 0:00:24.8]} 32... Qd8 {[%clk 0:01:43.8]} 33. Ne4 {[%clk 0:00:24]} 33...
Be6 {[%clk 0:01:44.7]} 34. Qb2 {[%clk 0:00:24.2]} 34... Bc4 {[%clk 0:01:43.7]}
35. Nc5 {[%clk 0:00:24.8]} 35... f6 {[%clk 0:01:40.6]} 36. d7 {[%clk 0:00:24.5]}
36... Re7 {[%clk 0:01:35.4]} 37. Qa3 {[%clk 0:00:21.6]} 37... Bf8 {[%clk
0:01:30]} 38. Qa5 {[%clk 0:00:21.4]} 1-0

[Event "*** Titled Tuesday Blitz AM"]
[Site "Chess.com"]
[Date "2020.01.07"]
[Round "4"]
[White "BIG_Pirate"]
[Black "mikhaillushenkov"]
[Result "0-1"]
[WhiteElo "2414"]
[BlackElo "2650"]
[TimeControl "180+2"]
[EndTime "9:51:33 PST"]
[Termination "mikhaillushenkov won by resignation"]

1. Nf3 {[%clk 0:03:01.9]} 1... d5 {[%clk 0:03:00.2]} 2. c4 {[%clk 0:03:02]} 2...
d4 {[%clk 0:03:00.7]} 3. g3 {[%clk 0:03:02.9]} 3... Nc6 {[%clk 0:03:01.6]} 4.
Bg2 {[%clk 0:03:03.9]} 4... e5 {[%clk 0:03:03.2]} 5. O-O {[%clk 0:03:04.9]} 5...
Nf6 {[%clk 0:03:02.8]} 6. d3 {[%clk 0:03:01.9]} 6... a5 {[%clk 0:03:03.9]} 7.
Na3 {[%clk 0:03:01.1]} 7... h6 {[%clk 0:02:47.9]} 8. Nb5 {[%clk 0:03:00.1]} 8...
Bc5 {[%clk 0:02:46]} 9. b3 {[%clk 0:02:54]} 9... O-O {[%clk 0:02:46.1]} 10. Ba3
{[%clk 0:02:30.6]} 10... Bxa3 {[%clk 0:02:45.2]} 11. Nxa3 {[%clk 0:02:31.2]}
11... Re8 {[%clk 0:02:46.4]} 12. Nd2 {[%clk 0:02:25.1]} 12... Bf5 {[%clk
0:02:44.7]} 13. Nc2 {[%clk 0:02:19.9]} 13... e4 {[%clk 0:02:42]} 14. dxe4 {[%clk
0:01:26.5]} 14... Nxe4 {[%clk 0:02:43.9]} 15. Nxe4 {[%clk 0:01:27.5]} 15... Bxe4
{[%clk 0:02:45.8]} 16. Ne1 {[%clk 0:01:28.9]} 16... Qe7 {[%clk 0:02:33.8]} 17.
Nf3 {[%clk 0:01:09.9]} 17... Rad8 {[%clk 0:02:32.2]} 18. Re1 {[%clk 0:01:10.6]}
18... Qf6 {[%clk 0:02:27.5]} 19. Qd2 {[%clk 0:01:00.9]} 19... d3 {[%clk
0:02:23.9]} 20. Qf4 {[%clk 0:00:46.2]} 20... Qxf4 {[%clk 0:02:22.8]} 21. gxf4
{[%clk 0:00:46.7]} 21... Bxf3 {[%clk 0:02:13.2]} 22. Bxf3 {[%clk 0:00:46.5]}
22... Nd4 {[%clk 0:02:14.3]} 23. Rab1 {[%clk 0:00:21.9]} 23... dxe2 {[%clk
0:01:33.9]} 24. Kg2 {[%clk 0:00:10.7]} 24... Rd6 {[%clk 0:01:18.6]} 25. Bxb7
{[%clk 0:00:08.3]} 25... Rg6+ {[%clk 0:01:13.8]} 26. Kh1 {[%clk 0:00:09.4]}
26... Nc2 {[%clk 0:01:15.2]} 27. Bd5 {[%clk 0:00:07.3]} 27... Nxe1 {[%clk
0:01:14.9]} 28. Rxe1 {[%clk 0:00:09.1]} 28... Rf6 {[%clk 0:01:11.9]} 29. Kg2
{[%clk 0:00:09.1]} 29... Rxf4 {[%clk 0:01:12.5]} 30. f3 {[%clk 0:00:10.7]} 30...
Rd4 {[%clk 0:01:13]} 31. Kf2 {[%clk 0:00:10.7]} 31... Rd2 {[%clk 0:01:14]} 32.
a3 {[%clk 0:00:10.7]} 32... c5 {[%clk 0:01:07.4]} 33. Be4 {[%clk 0:00:08.3]}
33... Rb2 {[%clk 0:00:59]} 34. Rxe2 {[%clk 0:00:07.5]} 34... Rxe2+ {[%clk
0:00:59.6]} 0-1

[Event "*** Titled Tuesday Blitz AM"]
[Site "Chess.com"]
[Date "2020.01.07"]
[Round "4"]
[White "Kirill_Kopenkin"]
[Black "allvim"]
[Result "0-1"]
[WhiteElo "2475"]
[BlackElo "2326"]
[TimeControl "180+2"]
[EndTime "9:51:33 PST"]
[Termination "allvim won by resignation"]

1. e4 {[%clk 0:03:01.9]} 1... c5 {[%clk 0:03:00.5]} 2. Nf3 {[%clk 0:03:02.8]}
2... d6 {[%clk 0:03:01.8]} 3. d4 {[%clk 0:03:04.1]} 3... cxd4 {[%clk 0:03:03.7]}
4. Nxd4 {[%clk 0:03:05.9]} 4... Nf6 {[%clk 0:03:05]} 5. Nc3 {[%clk 0:03:07.5]}
5... a6 {[%clk 0:03:06.5]} 6. f3 {[%clk 0:03:09]} 6... e5 {[%clk 0:03:07.1]} 7.
Nb3 {[%clk 0:03:10.3]} 7... h5 {[%clk 0:03:08.5]} 8. Be3 {[%clk 0:03:10.8]} 8...
Be6 {[%clk 0:03:09.7]} 9. Nd5 {[%clk 0:03:12.3]} 9... Bxd5 {[%clk 0:02:32.7]}
10. exd5 {[%clk 0:03:14.2]} 10... Nbd7 {[%clk 0:02:30.6]} 11. Qd2 {[%clk
0:03:14.3]} 11... g6 {[%clk 0:02:29.3]} 12. Na5 {[%clk 0:03:12.6]} 12... Qc7
{[%clk 0:02:27]} 13. c4 {[%clk 0:03:13.3]} 13... Bg7 {[%clk 0:02:25.2]} 14. Rc1
{[%clk 0:03:14.6]} 14... e4 {[%clk 0:02:22.3]} 15. Be2 {[%clk 0:03:15.8]} 15...
exf3 {[%clk 0:02:15.5]} 16. gxf3 {[%clk 0:03:17.7]} 16... O-O {[%clk 0:02:17]}
17. O-O {[%clk 0:03:19.1]} 17... Rfe8 {[%clk 0:02:11.2]} 18. b4 {[%clk
0:03:17.2]} 18... Rxe3 {[%clk 0:02:08]} 19. Qxe3 {[%clk 0:03:19.1]} 19... Re8
{[%clk 0:02:06]} 20. Qf2 {[%clk 0:02:54.1]} 20... Bh6 {[%clk 0:02:02.6]} 21. f4
{[%clk 0:02:42.1]} 21... Re4 {[%clk 0:02:03.5]} 22. Bf3 {[%clk 0:01:50.7]} 22...
Rxf4 {[%clk 0:02:00.9]} 23. Kh1 {[%clk 0:01:48.1]} 23... Ne5 {[%clk 0:01:46.6]}
24. Qe2 {[%clk 0:01:46.5]} 24... Nxf3 {[%clk 0:01:47.4]} 25. Rxf3 {[%clk
0:01:45.7]} 25... Rxf3 {[%clk 0:01:48.5]} 26. Qxf3 {[%clk 0:01:47.4]} 26... Bxc1
{[%clk 0:01:44]} 27. Qxf6 {[%clk 0:01:48.6]} 27... Qb6 {[%clk 0:01:31.7]} 28. c5
{[%clk 0:01:15.8]} 28... Qxb4 {[%clk 0:01:14.5]} 29. cxd6 {[%clk 0:01:17.1]}
29... Qe4+ {[%clk 0:01:03.1]} 30. Kg1 {[%clk 0:01:17.2]} 30... Be3+ {[%clk
0:01:04.4]} 31. Kf1 {[%clk 0:01:16.6]} 31... Qd3+ {[%clk 0:01:05.3]} 32. Kg2
{[%clk 0:01:03.8]} 32... Qe2+ {[%clk 0:00:46.5]} 33. Kh1 {[%clk 0:00:56.3]}
33... Qe1+ {[%clk 0:00:46.1]} 34. Kg2 {[%clk 0:00:57.4]} 34... Qe2+ {[%clk
0:00:47.4]} 35. Kh1 {[%clk 0:00:58.5]} 35... Qg4 {[%clk 0:00:46.3]} 0-1

[Event "*** Titled Tuesday Blitz AM"]
[Site "Chess.com"]
[Date "2020.01.07"]
[Round "4"]
[White "Colombiano07"]
[Black "Er_is_geen_hoop_meer"]
[Result "0-1"]
[WhiteElo "2161"]
[BlackElo "2378"]
[TimeControl "180+2"]
[EndTime "9:51:34 PST"]
[Termination "Er_is_geen_hoop_meer won by checkmate"]

1. Nf3 {[%clk 0:03:00.5]} 1... d6 {[%clk 0:02:47.6]} 2. d4 {[%clk 0:03:01.1]}
2... g6 {[%clk 0:02:46.8]} 3. b3 {[%clk 0:03:01.7]} 3... Bg7 {[%clk 0:02:48.1]}
4. Bb2 {[%clk 0:03:03.4]} 4... Nf6 {[%clk 0:02:48.8]} 5. g3 {[%clk 0:03:02.1]}
5... O-O {[%clk 0:02:50.3]} 6. Bg2 {[%clk 0:03:03.7]} 6... e5 {[%clk 0:02:50.8]}
7. dxe5 {[%clk 0:03:04.2]} 7... Ng4 {[%clk 0:02:51.5]} 8. O-O {[%clk 0:03:03.6]}
8... Nc6 {[%clk 0:02:51.6]} 9. Nbd2 {[%clk 0:03:03.7]} 9... Ngxe5 {[%clk
0:02:52.4]} 10. Nxe5 {[%clk 0:03:04.9]} 10... Nxe5 {[%clk 0:02:54.3]} 11. Qc1
{[%clk 0:03:05.5]} 11... h5 {[%clk 0:02:53.3]} 12. Nf3 {[%clk 0:03:06.3]} 12...
Qe7 {[%clk 0:02:51.4]} 13. c4 {[%clk 0:03:02.4]} 13... a5 {[%clk 0:02:50.6]} 14.
Nxe5 {[%clk 0:02:53.3]} 14... dxe5 {[%clk 0:02:47.1]} 15. Ba3 {[%clk 0:02:51.9]}
15... c5 {[%clk 0:02:47.2]} 16. Qe3 {[%clk 0:02:51.4]} 16... Re8 {[%clk
0:02:37.9]} 17. Qxc5 {[%clk 0:02:50.1]} 17... Qxc5 {[%clk 0:02:35.5]} 18. Bxc5
{[%clk 0:02:50.6]} 18... e4 {[%clk 0:02:37.4]} 19. Rad1 {[%clk 0:02:50.9]} 19...
a4 {[%clk 0:02:38]} 20. b4 {[%clk 0:02:51.3]} 20... a3 {[%clk 0:02:39.4]} 21.
Bd4 {[%clk 0:02:47.2]} 21... Bf8 {[%clk 0:02:30.8]} 22. Bc3 {[%clk 0:02:36.4]}
22... Ra4 {[%clk 0:02:11.1]} 23. Rb1 {[%clk 0:02:20.2]} 23... Be6 {[%clk
0:02:11.6]} 24. Bxe4 {[%clk 0:02:16.4]} 24... Bxc4 {[%clk 0:02:12.8]} 25. Bxb7
{[%clk 0:02:17.6]} 25... Rxe2 {[%clk 0:02:11.3]} 26. Bc6 {[%clk 0:02:13]} 26...
Ra6 {[%clk 0:01:41.7]} 27. b5 {[%clk 0:02:12.3]} 27... Rb6 {[%clk 0:01:43.2]}
28. Bd4 {[%clk 0:02:10]} 28... Rb8 {[%clk 0:01:44.6]} 29. b6 {[%clk 0:02:05]}
29... Bxa2 {[%clk 0:01:45.1]} 30. Ra1 {[%clk 0:01:43.7]} 30... Bc4 {[%clk
0:01:40.1]} 31. b7 {[%clk 0:01:17.2]} 31... Ba6 {[%clk 0:01:31.4]} 32. Bf3
{[%clk 0:00:31.1]} 32... Rxb7 {[%clk 0:01:27.9]} 33. Bxe2 {[%clk 0:00:24.1]}
33... Bxe2 {[%clk 0:01:29.8]} 34. Rfe1 {[%clk 0:00:25.7]} 34... Bb5 {[%clk
0:01:29.8]} 35. Rec1 {[%clk 0:00:20.8]} 35... Rd7 {[%clk 0:01:27.6]} 36. Bc5
{[%clk 0:00:21.5]} 36... Bg7 {[%clk 0:01:21.4]} 37. Rxa3 {[%clk 0:00:19]} 37...
Bb2 {[%clk 0:01:22.9]} 38. Ra8+ {[%clk 0:00:20.1]} 38... Kg7 {[%clk 0:01:24.4]}
39. Rb1 {[%clk 0:00:21.4]} 39... Bc6 {[%clk 0:01:25.4]} 40. Ra7 {[%clk
0:00:11.8]} 40... Rd5 {[%clk 0:01:23]} 41. Rxb2 {[%clk 0:00:09.5]} 41... Rd1#
{[%clk 0:01:24]} 0-1

[Event "*** Titled Tuesday Blitz AM"]
[Site "Chess.com"]
[Date "2020.01.07"]
[Round "4"]
[White "miroslavsavic"]
[Black "vova-79"]
[Result "0-1"]
[WhiteElo "2082"]
[BlackElo "2616"]
[TimeControl "180+2"]
[EndTime "9:51:43 PST"]
[Termination "vova-79 won on time"]

1. Nf3 {[%clk 0:03:01.9]} 1... d5 {[%clk 0:03:00.2]} 2. d4 {[%clk 0:02:59.7]}
2... Nf6 {[%clk 0:02:58.9]} 3. c4 {[%clk 0:03:01.6]} 3... c6 {[%clk 0:02:59.5]}
4. e3 {[%clk 0:03:01.7]} 4... e6 {[%clk 0:03:00]} 5. Nc3 {[%clk 0:03:03.2]} 5...
Nbd7 {[%clk 0:03:00.8]} 6. b3 {[%clk 0:03:04]} 6... Bb4 {[%clk 0:03:00.5]} 7.
Bd2 {[%clk 0:03:05]} 7... Bd6 {[%clk 0:02:59.3]} 8. Be2 {[%clk 0:03:00.8]} 8...
O-O {[%clk 0:02:59.9]} 9. O-O {[%clk 0:03:01]} 9... dxc4 {[%clk 0:03:01.1]} 10.
Bxc4 {[%clk 0:02:58.9]} 10... e5 {[%clk 0:03:02.5]} 11. dxe5 {[%clk 0:02:58.3]}
11... Nxe5 {[%clk 0:03:03.1]} 12. Nxe5 {[%clk 0:02:58]} 12... Bxe5 {[%clk
0:03:03.6]} 13. f4 {[%clk 0:02:52.8]} 13... Bc7 {[%clk 0:02:51.1]} 14. Bc1
{[%clk 0:02:29.4]} 14... Qe7 {[%clk 0:02:29.3]} 15. Kh1 {[%clk 0:02:06.4]} 15...
Bg4 {[%clk 0:02:23.3]} 16. Qc2 {[%clk 0:02:04.9]} 16... Rfe8 {[%clk 0:02:16]}
17. a4 {[%clk 0:01:47.4]} 17... Rad8 {[%clk 0:02:10.5]} 18. Re1 {[%clk 0:01:47]}
18... Nh5 {[%clk 0:01:50]} 19. Qf2 {[%clk 0:01:38.5]} 19... Ba5 {[%clk
0:01:45.8]} 20. Bb2 {[%clk 0:01:30.8]} 20... Be6 {[%clk 0:01:44.8]} 21. Red1
{[%clk 0:01:06.6]} 21... Bxc4 {[%clk 0:01:39.9]} 22. bxc4 {[%clk 0:01:06.9]}
22... Qxe3 {[%clk 0:01:40]} 23. Rxd8 {[%clk 0:01:01.7]} 23... Bxd8 {[%clk
0:01:39.4]} 24. Qxe3 {[%clk 0:00:57.5]} 24... Rxe3 {[%clk 0:01:41.3]} 25. g4
{[%clk 0:00:49.8]} 25... Nxf4 {[%clk 0:01:39.8]} 26. Rf1 {[%clk 0:00:32.8]}
26... Nd3 {[%clk 0:01:33.4]} 27. Nd1 {[%clk 0:00:15.8]} 27... Re4 {[%clk
0:01:28]} 28. Nf2 {[%clk 0:00:08.2]} 28... Nxf2+ {[%clk 0:01:27.2]} 29. Rxf2
{[%clk 0:00:09.3]} 29... Rxc4 {[%clk 0:01:08.4]} 30. Rd2 {[%clk 0:00:07.5]}
30... Ba5 {[%clk 0:01:08.6]} 31. Rd7 {[%clk 0:00:06.9]} 31... h6 {[%clk
0:00:57.6]} 32. Rxb7 {[%clk 0:00:06.5]} 32... Bb6 {[%clk 0:00:51.9]} 0-1

[Event "*** Titled Tuesday Blitz AM"]
[Site "Chess.com"]
[Date "2020.01.07"]
[Round "4"]
[White "TregubovP"]
[Black "Keranke"]
[Result "1-0"]
[WhiteElo "2592"]
[BlackElo "2735"]
[TimeControl "180+2"]
[EndTime "9:51:44 PST"]
[Termination "TregubovP won by checkmate"]

1. e4 {[%clk 0:03:01.9]} 1... g6 {[%clk 0:03:00.7]} 2. d4 {[%clk 0:03:01.5]}
2... Bg7 {[%clk 0:03:02.2]} 3. Nf3 {[%clk 0:02:58.4]} 3... d6 {[%clk 0:03:03.1]}
4. c4 {[%clk 0:02:59.1]} 4... Nf6 {[%clk 0:03:03.5]} 5. Nc3 {[%clk 0:03:00.1]}
5... O-O {[%clk 0:03:05]} 6. Be2 {[%clk 0:03:01.1]} 6... Bg4 {[%clk 0:03:05]} 7.
h3 {[%clk 0:03:00.9]} 7... Bxf3 {[%clk 0:03:05]} 8. Bxf3 {[%clk 0:03:02.3]} 8...
Nc6 {[%clk 0:03:04.4]} 9. d5 {[%clk 0:03:03.4]} 9... Na5 {[%clk 0:03:04.6]} 10.
Be2 {[%clk 0:03:02]} 10... Nd7 {[%clk 0:03:05.4]} 11. Bd2 {[%clk 0:02:58.9]}
11... c5 {[%clk 0:03:04.7]} 12. O-O {[%clk 0:02:56.8]} 12... e6 {[%clk
0:03:00.1]} 13. b3 {[%clk 0:02:54.3]} 13... exd5 {[%clk 0:02:58.1]} 14. exd5
{[%clk 0:02:53.6]} 14... Re8 {[%clk 0:02:58.7]} 15. Rc1 {[%clk 0:02:53.7]} 15...
a6 {[%clk 0:02:59.1]} 16. Bf4 {[%clk 0:02:52.7]} 16... Ne5 {[%clk 0:02:51.6]}
17. Qd2 {[%clk 0:02:52.4]} 17... Rb8 {[%clk 0:02:46.4]} 18. Rfe1 {[%clk
0:02:39.3]} 18... f5 {[%clk 0:02:44.8]} 19. Bf1 {[%clk 0:02:31.7]} 19... b6
{[%clk 0:02:27.1]} 20. Ne2 {[%clk 0:02:20.7]} 20... b5 {[%clk 0:02:15.7]} 21.
Bg5 {[%clk 0:02:19.8]} 21... Qb6 {[%clk 0:02:16.4]} 22. Ng3 {[%clk 0:01:55.7]}
22... bxc4 {[%clk 0:01:59.1]} 23. bxc4 {[%clk 0:01:56.5]} 23... Qb4 {[%clk
0:01:57]} 24. Qxb4 {[%clk 0:01:28.1]} 24... cxb4 {[%clk 0:01:58.9]} 25. c5
{[%clk 0:01:28.1]} 25... dxc5 {[%clk 0:01:57]} 26. Bxa6 {[%clk 0:01:21]} 26...
Bf8 {[%clk 0:01:21.2]} 27. Ne2 {[%clk 0:01:16.1]} 27... Rb6 {[%clk 0:01:09.9]}
28. f4 {[%clk 0:01:14.2]} 28... Rxa6 {[%clk 0:01:06]} 29. fxe5 {[%clk
0:01:14.8]} 29... Rxe5 {[%clk 0:01:07.7]} 30. Nf4 {[%clk 0:01:12.1]} 30... Rxe1+
{[%clk 0:01:08.2]} 31. Rxe1 {[%clk 0:01:12.6]} 31... c4 {[%clk 0:00:56.4]} 32.
Re8 {[%clk 0:01:12.6]} 32... Kf7 {[%clk 0:00:54.8]} 33. Rc8 {[%clk 0:01:07]}
33... Bd6 {[%clk 0:00:52.4]} 34. Ne6 {[%clk 0:00:55.7]} 34... h6 {[%clk
0:00:38.7]} 35. Bxh6 {[%clk 0:00:52.9]} 35... b3 {[%clk 0:00:31.1]} 36. axb3
{[%clk 0:00:53.1]} 36... cxb3 {[%clk 0:00:32.2]} 37. Bc1 {[%clk 0:00:52.6]}
37... Be5 {[%clk 0:00:30.3]} 38. Ba3 {[%clk 0:00:44.9]} 38... Nb7 {[%clk
0:00:27.8]} 39. Rf8# {[%clk 0:00:44.9]} 1-0

[Event "*** Titled Tuesday Blitz AM"]
[Site "Chess.com"]
[Date "2020.01.07"]
[Round "4"]
[White "peteseeger"]
[Black "Martins-BR"]
[Result "0-1"]
[WhiteElo "2160"]
[BlackElo "2363"]
[TimeControl "180+2"]
[EndTime "9:51:49 PST"]
[Termination "Martins-BR won by resignation"]

1. e4 {[%clk 0:03:01.9]} 1... c5 {[%clk 0:02:59.1]} 2. Nf3 {[%clk 0:03:02.2]}
2... e6 {[%clk 0:02:59.4]} 3. b4 {[%clk 0:03:02.1]} 3... cxb4 {[%clk 0:02:59.5]}
4. a3 {[%clk 0:03:02.9]} 4... bxa3 {[%clk 0:02:54.3]} 5. d4 {[%clk 0:03:03]}
5... d5 {[%clk 0:02:53.1]} 6. e5 {[%clk 0:03:03.7]} 6... Nc6 {[%clk 0:02:50.7]}
7. c3 {[%clk 0:03:01.7]} 7... Nh6 {[%clk 0:02:47.1]} 8. Bxh6 {[%clk 0:03:00.9]}
8... gxh6 {[%clk 0:02:47.3]} 9. Bd3 {[%clk 0:03:02.4]} 9... a6 {[%clk
0:02:45.4]} 10. Nxa3 {[%clk 0:02:59.6]} 10... Bd7 {[%clk 0:02:45.4]} 11. O-O
{[%clk 0:02:59]} 11... b5 {[%clk 0:02:44.1]} 12. Nc2 {[%clk 0:02:59.4]} 12...
Bg7 {[%clk 0:02:32]} 13. Nfe1 {[%clk 0:02:51.9]} 13... O-O {[%clk 0:02:31.5]}
14. f4 {[%clk 0:02:52.6]} 14... f5 {[%clk 0:02:32.3]} 15. exf6 {[%clk
0:02:45.4]} 15... Qxf6 {[%clk 0:02:32]} 16. Ne3 {[%clk 0:02:45.8]} 16... b4
{[%clk 0:02:22.1]} 17. Nf3 {[%clk 0:01:53.9]} 17... bxc3 {[%clk 0:02:20.1]} 18.
Ne5 {[%clk 0:01:54.4]} 18... Nxe5 {[%clk 0:02:07.3]} 19. fxe5 {[%clk 0:01:51.8]}
19... Qg5 {[%clk 0:02:04.5]} 20. Nc2 {[%clk 0:01:46]} 20... a5 {[%clk
0:01:49.4]} 21. Rxf8+ {[%clk 0:01:25.6]} 21... Bxf8 {[%clk 0:01:49.6]} 22. Qe1
{[%clk 0:01:25.6]} 22... Rc8 {[%clk 0:01:32.8]} 23. Rxa5 {[%clk 0:01:20.9]}
23... Qd2 {[%clk 0:01:31.5]} 24. Qg3+ {[%clk 0:01:16.6]} 24... Kh8 {[%clk
0:01:30.3]} 25. h3 {[%clk 0:01:03.3]} 25... Be7 {[%clk 0:01:20.3]} 26. Ra7
{[%clk 0:01:00.9]} 26... Rg8 {[%clk 0:01:14.7]} 27. Qf3 {[%clk 0:00:54.9]} 27...
Qc1+ {[%clk 0:01:10.9]} 28. Kh2 {[%clk 0:00:53.7]} 28... Bg5 {[%clk 0:01:08]}
29. Rxd7 {[%clk 0:00:19.9]} 29... Bf4+ {[%clk 0:01:05.6]} 30. g3 {[%clk
0:00:20.8]} 30... Bxg3+ {[%clk 0:00:39.3]} 31. Qxg3 {[%clk 0:00:19.7]} 31...
Qd2+ {[%clk 0:00:38.1]} 32. Kh1 {[%clk 0:00:19.4]} 32... Rxg3 {[%clk 0:00:39]}
0-1

[Event "*** Titled Tuesday Blitz AM"]
[Site "Chess.com"]
[Date "2020.01.07"]
[Round "4"]
[White "Gogolev_Artemy"]
[Black "Komissarov_alex"]
[Result "1-0"]
[WhiteElo "2412"]
[BlackElo "1743"]
[TimeControl "180+2"]
[EndTime "9:51:53 PST"]
[Termination "Gogolev_Artemy won on time"]

1. Nf3 {[%clk 0:02:50]} 1... Nf6 {[%clk 0:02:58.4]} 2. g3 {[%clk 0:02:50]} 2...
g6 {[%clk 0:02:58.4]} 3. b3 {[%clk 0:02:50.7]} 3... Bg7 {[%clk 0:02:56.2]} 4.
Bb2 {[%clk 0:02:51.9]} 4... O-O {[%clk 0:02:56.3]} 5. d4 {[%clk 0:02:50.5]} 5...
b6 {[%clk 0:02:52]} 6. Bg2 {[%clk 0:02:50]} 6... Bb7 {[%clk 0:02:52.6]} 7. O-O
{[%clk 0:02:50.2]} 7... d6 {[%clk 0:02:52.2]} 8. c4 {[%clk 0:02:50.3]} 8... Nbd7
{[%clk 0:02:45.4]} 9. d5 {[%clk 0:02:49.3]} 9... e6 {[%clk 0:02:32.4]} 10. dxe6
{[%clk 0:02:44.3]} 10... fxe6 {[%clk 0:02:29.5]} 11. Nc3 {[%clk 0:02:44.5]}
11... Qe7 {[%clk 0:02:25.9]} 12. Qd2 {[%clk 0:02:43.7]} 12... Ne4 {[%clk
0:02:19]} 13. Nxe4 {[%clk 0:02:42.2]} 13... Bxe4 {[%clk 0:02:16.8]} 14. Bxg7
{[%clk 0:02:42.1]} 14... Qxg7 {[%clk 0:02:15]} 15. Qe3 {[%clk 0:02:39.7]} 15...
Nf6 {[%clk 0:01:37.5]} 16. Ng5 {[%clk 0:02:23.7]} 16... Bxg2 {[%clk 0:01:22.1]}
17. Kxg2 {[%clk 0:02:04.4]} 17... Rae8 {[%clk 0:01:07.1]} 18. h3 {[%clk
0:01:55.9]} 18... h6 {[%clk 0:00:55.9]} 19. Nf3 {[%clk 0:01:50]} 19... Kh7
{[%clk 0:00:43.8]} 20. Rad1 {[%clk 0:01:47.3]} 20... Qd7 {[%clk 0:00:38.8]} 21.
h4 {[%clk 0:01:44.8]} 21... Qc6 {[%clk 0:00:34.7]} 22. Kg1 {[%clk 0:01:45]}
22... Ng4 {[%clk 0:00:28.6]} 23. Qd3 {[%clk 0:01:42.8]} 23... e5 {[%clk
0:00:19]} 24. h5 {[%clk 0:01:32.2]} 24... e4 {[%clk 0:00:17.9]} 25. hxg6+ {[%clk
0:01:33]} 25... Kg8 {[%clk 0:00:14]} 26. Qd4 {[%clk 0:01:21.5]} 26... exf3
{[%clk 0:00:11.9]} 27. g7 {[%clk 0:01:06.2]} 27... Rf7 {[%clk 0:00:06.2]} 28.
Rfe1 {[%clk 0:00:58.7]} 28... fxe2 {[%clk 0:00:04.5]} 29. Rd2 {[%clk 0:00:57.7]}
29... Ne5 {[%clk 0:00:04.3]} 30. Rdxe2 {[%clk 0:00:52.9]} 30... Nf3+ {[%clk
0:00:04.3]} 31. Kf1 {[%clk 0:00:54]} 31... Nh2+ {[%clk 0:00:01.6]} 32. Kg1
{[%clk 0:00:54]} 32... Nf3+ {[%clk 0:00:01.3]} 33. Kf1 {[%clk 0:00:54.3]} 1-0

[Event "*** Titled Tuesday Blitz AM"]
[Site "Chess.com"]
[Date "2020.01.07"]
[Round "4"]
[White "Korchmar_Vasiliy"]
[Black "Korona_91"]
[Result "1-0"]
[WhiteElo "2762"]
[BlackElo "2533"]
[TimeControl "180+2"]
[EndTime "9:51:58 PST"]
[Termination "Korchmar_Vasiliy won on time"]

1. d4 {[%clk 0:03:01.9]} 1... g6 {[%clk 0:02:58.3]} 2. e4 {[%clk 0:03:02.6]}
2... Bg7 {[%clk 0:02:59.2]} 3. Nc3 {[%clk 0:02:58.1]} 3... d6 {[%clk 0:02:59]}
4. f4 {[%clk 0:02:59.3]} 4... Nd7 {[%clk 0:02:59.3]} 5. Nf3 {[%clk 0:03:00]}
5... e6 {[%clk 0:02:53.5]} 6. Be3 {[%clk 0:03:00.2]} 6... Ne7 {[%clk 0:02:54.1]}
7. Qd2 {[%clk 0:03:01.2]} 7... b6 {[%clk 0:02:54.7]} 8. O-O-O {[%clk 0:02:59.8]}
8... Bb7 {[%clk 0:02:53]} 9. g4 {[%clk 0:02:58.2]} 9... h5 {[%clk 0:02:47.2]}
10. gxh5 {[%clk 0:02:56.8]} 10... Rxh5 {[%clk 0:02:47]} 11. Be2 {[%clk
0:02:58.4]} 11... Rh8 {[%clk 0:02:44.6]} 12. h4 {[%clk 0:02:58.8]} 12... c5
{[%clk 0:02:35.9]} 13. Rdg1 {[%clk 0:02:16.4]} 13... d5 {[%clk 0:02:27.4]} 14.
exd5 {[%clk 0:02:06.3]} 14... Nxd5 {[%clk 0:02:23.4]} 15. Nxd5 {[%clk
0:02:06.6]} 15... Bxd5 {[%clk 0:02:23.8]} 16. h5 {[%clk 0:02:04.3]} 16... Qf6
{[%clk 0:02:03.1]} 17. Ne5 {[%clk 0:01:39.6]} 17... Nxe5 {[%clk 0:01:29.3]} 18.
dxe5 {[%clk 0:01:27]} 18... Qd8 {[%clk 0:01:28.9]} 19. Bb5+ {[%clk 0:01:24]}
19... Kf8 {[%clk 0:01:26]} 20. h6 {[%clk 0:01:14.9]} 20... Bxh1 {[%clk
0:01:11.7]} 21. hxg7+ {[%clk 0:01:13.3]} 21... Kxg7 {[%clk 0:01:12.6]} 22. Qf2
{[%clk 0:01:12.8]} 22... Qd5 {[%clk 0:01:02.9]} 23. f5 {[%clk 0:01:09.8]} 23...
exf5 {[%clk 0:00:37]} 24. Qxf5 {[%clk 0:01:11.7]} 24... Be4 {[%clk 0:00:29.5]}
25. Qf6+ {[%clk 0:01:13]} 25... Kg8 {[%clk 0:00:30.1]} 26. Rd1 {[%clk
0:01:14.9]} 26... Qe6 {[%clk 0:00:25]} 27. b3 {[%clk 0:00:39.3]} 27... Rh2
{[%clk 0:00:18.7]} 28. Rd7 {[%clk 0:00:31.9]} 28... Rxc2+ {[%clk 0:00:19.1]} 29.
Kd1 {[%clk 0:00:33.1]} 1-0